Cogmind - Beta 17 @@@ ROGUE MODE // 2026.08.20 @ 12:38:38 Player: LandRaider Result: Destroyed by S-10 Pest with Light Assault Rifle Performance ------------- Evolutions (1) 500 Regions Visited (3) 600 Robots Destroyed (41) 205 Value Destroyed (895) 895 Prototype IDs (7) 140 Alien Tech Used (0) 0 Bonus (0) 0 TOTAL SCORE: 2340 Bonus ------- None Cogmind --------- Core Integrity 0/400 Matter 300/300 Energy 280/280 System Corruption 9% Temperature Cool (0) Movement Treading (160) Location -9/Storage Parts ------- > --- POWER (1) -------- Cooled Ion Engine > --- PROPULSION (2) --- Light Treads Light Treads > --- UTILITY (4) ------ Medium Storage Unit Hacking Suite > --- WEAPON (2) ------- Mini Grenade Launcher Maul > --- INVENTORY (10) --- Light Ion Engine Improved Flight Unit Improved Flight Unit Improved Flight Unit Advanced Beam Cannon Compact Ion Cannon Improved Assault Rifle Improved Assault Rifle Improved Assault Rifle Improved Assault Rifle Peak State ------------ > --- POWER ------------ Cooled Ion Engine > --- PROPULSION ------- Light Treads Light Treads > --- UTILITY ---------- Medium Storage Unit Utility Shielding Light Armor Plating Hacking Suite > --- WEAPON ----------- Compact Ion Cannon Maul > --- INVENTORY -------- Light Ion Engine Improved Flight Unit Improved Flight Unit Improved Flight Unit Improved Assault Rifle Improved Assault Rifle Improved Assault Rifle Improved Assault Rifle Mini Grenade Launcher Mining Laser [Rating: 21] Favorites ----------- Power Improved Ion Engine Engine Improved Ion Engine Propulsion Light Treads Treads Light Treads Leg Aluminum Leg Wheel Compact Wheel Flight Unit Improved Flight Unit Utility Large Storage Unit Device Seismic Detector Storage Large Storage Unit Hackware Hacking Suite Protection Utility Shielding Weapon Light Assault Rifle Energy Gun Improved EM Shotgun Energy Cannon Advanced Beam Cannon Ballistic Gun Light Assault Rifle Launcher Mini Grenade Launcher Special Weapon Mining Laser Impact Weapon Maul Slashing Weapon Mining Claw Build | -11 -10 -9 -9 ------- Run | Yrd Mat Mat Sto Slots Evolved 2 | . . 2 . Power . | . . . . Propulsion . | . . . . Utility 2 | . . 2 . Weapon . | . . . . Parts Attached 47 | 7 7 7 26 Power 8 | 1 . 2 5 Engine 8 | 1 . 2 5 Core . | . . . . Reactor . | . . . . Propulsion 17 | 2 4 3 8 Treads 12 | . 2 3 7 Leg 2 | . 2 . . Wheel 2 | 2 . . . Hover . | . . . . Flight 1 | . . . 1 Utility 9 | 2 1 2 4 Device 1 | 1 . . . Storage 3 | 1 1 . 1 Processor . | . . . . Hackware 1 | . . . 1 Protection 4 | . . 2 2 Artifact . | . . . . Weapon 13 | 2 2 . 9 Energy Gun 1 | . . . 1 Energy Cannon 2 | . . . 2 Ballistic Gun 6 | 2 . . 4 Ballistic Cannon . | . . . . Launcher 1 | . . . 1 Special Weapon 1 | . 1 . . Impact Weapon 1 | . . . 1 Slashing Weapon 1 | . 1 . . Piercing Weapon . | . . . . Special Melee Weapon . | . . . . Unidentified Prototypes 7 | . . . 7 Parts Lost 7 | . . 1 6 Power 1 | . . 1 . Propulsion 1 | . . . 1 Utility 4 | . . . 4 Weapon 1 | . . . 1 Highest Loss Streak 2 | . . 1 2 To Critical Strikes . | . . . . Average Backups 11 | 5 9 12 12 Power 1 | . 1 1 1 Propulsion 4 | 3 4 4 4 Utility 1 | . 1 2 1 Weapon 4 | . 2 4 5 Tool/Special . | . . . . Unused Backups 12 | . . 1 11 Power . | . . . . Propulsion 3 | . . . 3 Utility 3 | . . . 3 Weapon 6 | . . 1 5 Tool/Special . | . . . . Average Slot Usage (%) 93 | . 100 86 92 Engine 11 | . 14 10 11 Treads 21 | . 25 17 21 Device 7 | . 14 11 4 Storage 11 | . 14 11 11 Hackware 4 | . . . 7 Protection 12 | . . 14 15 Ballistic Gun 16 | . 25 15 13 Launcher 1 | . . . 1 Impact Weapon 2 | . . . 3 Slashing Weapon 1 | . . 6 . Peak Build Rating 21 | 8 8 13 21 Average Rating 12 | 5 8 10 14 On Entrance 7 | . 8 8 13 Avg Prop Armor Cover (%) . | . . . . Naked Turns . | . . . . Heaviest Build 39 | 11 27 39 38 Greatest Support 40 | 26 40 40 40 Greatest Overweight (x) 1 | . . 1 1 Average Overweight (x) . | . . . . Largest Inventory Capacity 15 | 8 15 15 15 Average Capacity 13 | 7 14 15 12 Most Carried 15 | 8 10 15 15 Average Carried 11 | 5 9 12 12 Final Capacity 15 | 8 15 15 10 Final Carried 15 | 8 10 15 10 Class Distribution -------------------- 62% | Scavenger-Mutant 37% | Mutant Dominant Class ---------------- Mutant | -10/Materials Mutant | -9/Materials Scavenger-Mutant | -9/Storage Resources | -11 -10 -9 -9 ----------- Run | Yrd Mat Mat Sto Matter Collected 1364 | 314 120 211 719 Remotely . | . . . . Salvage Created 1622 | 146 63 128 1285 Parts 109 | 10 6 16 77 Haulers Intercepted 5 | . . . 5 Recyclers Shooed 10 | . . . 10 Parts Field Recycled . | . . . . Retrieved Matter . | . . . . Parts Self-Destructed . | . . . . Prevented . | . . . . Parts Restored . | . . . . Kills | -11 -10 -9 -9 ------- Run | Yrd Mat Mat Sto Combat Hostiles Destroyed 22 | . 1 2 19 Guns 22 | . 1 2 19 Classes Destroyed 9 | 2 2 2 3 Worker 2 | . . 1 1 Tunneler 4 | 4 . . . Hauler 5 | . . . 5 Recycler 4 | 1 . . 3 Operator 1 | . . . 1 Watcher 3 | . 2 . 1 Swarmer 5 | . . . 5 Grunt 8 | . 1 . 7 Sentry 9 | . . 2 7 Best Kill Streak 5 | 5 1 1 5 Combat Bots Only 4 | . 1 1 4 Max Kills in Single Turn 2 | 1 1 1 2 Gunslinging 1 | . . . 1 Exploded . | . . . . Melee . | . . . . Uniques/NPCs Destroyed . | . . . . Combat | -11 -10 -9 -9 -------- Run | Yrd Mat Mat Sto Hostile Shots Fired 192 | . 7 35 150 Missed 62 | . 3 12 47 Hits 130 | . 4 23 103 Melee 2 | . . 2 . Projectile 128 | . 4 21 103 Critical Strikes 7 | . . 1 6 Damage Taken 2086 | . 44 373 1669 Core 410 | . 10 41 359 Absorbed by Shields . | . . . . Redirected to Shielding 32 | . . 4 28 Core Remaining (%) 98 | 100 96 . . Volleys Fired 202 | 22 17 12 151 Largest 2 | 2 2 2 2 Hottest 100 | 40 100 40 90 Shots Fired 352 | 44 28 24 256 Gun 336 | 44 22 24 246 Cannon 3 | . . . 3 Launcher 7 | . . . 7 Special 6 | . 6 . . Kinetic 336 | 44 22 24 246 Thermal 9 | . 6 . 3 Explosive 7 | . . . 7 Electromagnetic . | . . . . Robot Hit Streak 12 | 6 7 11 12 Robot Miss Streak 4 | 3 2 3 4 Penetration Max . | . . . . Secondary Targets 3 | . . . 3 Max Gunslinging Chain 1 | . . . 1 Shots Hit Robots 225 | 27 13 21 164 Core Hits 91 | 11 7 8 65 Critical Kills . | . . . . Critical Parts Destroyed 1 | . . . 1 Critical Strikes 1 | . . . 1 Destroy 1 | . . . 1 Melee Attacks 27 | . 2 18 7 Impact 7 | . . . 7 Slashing 20 | . 2 18 . Piercing . | . . . . Sneak Attacks 2 | . . 1 1 Combat Hostiles . | . . . . Follow-up Attacks . | . . . . Damage Inflicted 2372 | 237 112 225 1798 Guns 2252 | 237 112 156 1747 Cannons . | . . . . Explosions . | . . . . Melee 119 | . . 69 50 Ramming 1 | . . . 1 Kinetic 2252 | 237 112 156 1747 Thermal . | . . . . Explosive . | . . . . Electromagnetic . | . . . . Impact 50 | . . . 50 Slashing 69 | . . 69 . Piercing . | . . . . Highest Corruption 9 | . . . 9 Average Corruption 4 | . . . 4 Corruption Purged . | . . . . Corruption Blocked . | . . . . Effects 17 | . . . 17 Message Errors 3 | . . . 3 Matter Fused 3 | . . . 3 Heat Flow Errors 2 | . . . 2 Energy Discharges 4 | . . . 4 Parts Rejected 1 | . . . 1 Data Loss (minor) 1 | . . . 1 Data Loss (major) 2 | . . . 2 Alerts 1 | . . . 1 Overload Shots . | . . . . Overflow Damage . | . . . . Projectiles . | . . . . Explosions . | . . . . Melee . | . . . . Knockbacks . | . . . . Impact . | . . . . Kinetic . | . . . . Secondary . | . . . . Self-Inflicted Damage 111 | . . . 111 Shots 4 | . . . 4 Rammed 1 | . . . 1 Targets Rammed 1 | . . . 1 Kicked . | . . . . Crushed . | . . . . Highest Temperature 188 | . 42 11 188 Average Temperature 16 | . 17 2 16 Received Heat Transfer 612 | . 24 78 510 Siege Activations . | . . . . Martial Activations . | . . . . Shielding Activations . | . . . . Robots Disrupted . | . . . . Combat Hostiles . | . . . . Robots Corrupted . | . . . . Combat Hostiles . | . . . . Parts Fried . | . . . . Impact Corruptions . | . . . . Robots Melted . | . . . . Combat Hostiles . | . . . . Parts Melted . | . . . . Heat Transferred . | . . . . Parts Sabotaged . | . . . . Parts Stolen . | . . . . Parts Stripped . | . . . . Power Chain Reactions . | . . . . Alert | -11 -10 -9 -9 ------- Run | Yrd Mat Mat Sto Maximum Alert Level 1 | . . . 1 Low Security (%) 83 | 100 100 100 72 Level 1 16 | . . . 27 Level 2 . | . . . . Level 3 . | . . . . Level 4 . | . . . . Level 5 . | . . . . High Security . | . . . . Max Security . | . . . . Peak Influence 241 | 15 30 45 241 Initial 4 | . . . 4 Average 78 | 2 8 11 125 Influence Increases 973 | 25 136 127 685 Destroy 0b10 Robot/C 440 | . 20 40 380 Destroy 0b10 Robot/NC 95 | 25 10 5 55 Destroy Leader 156 | . 14 20 122 Successful Hack 17 | . . 9 8 Select Force Hacks 90 | . 60 . 30 Disable Machine 60 | . . . 60 Destroy Structure 25 | . 2 8 15 Lose Combat Pursuer 90 | . 30 45 15 Influence Decreases 973 | 25 136 115 697 Entered New Map 8 | . . . 8 Time Decay 755 | 25 136 115 479 Lost Part 60 | . . . 60 Purge Threat 150 | . . . 150 Squads Dispatched 6 | . 3 1 2 Investigation 3 | . 2 . 1 Extermination . | . . . . Reinforcement 3 | . 1 1 1 Assault . | . . . . Garrison . | . . . . Intercept . | . . . . Searches Triggered . | . . . . Construction Impeded . | . . . . Haulers Reinforced . | . . . . Active Scanning Responses . | . . . . Cargo Convoy Interrupts . | . . . . Stealth | -11 -10 -9 -9 --------- Run | Yrd Mat Mat Sto Distress Signals 4 | . 1 1 2 Communications Jammed . | . . . . Distress Signals . | . . . . Times Spotted 45 | . 7 8 30 Peak Tracking Total 4 | . 3 3 4 Tactical Retreats 3 | . 1 1 1 Traps | -11 -10 -9 -9 ------- Run | Yrd Mat Mat Sto Traps Triggered . | . . . . Indirectly . | . . . . Trap Hack Attempts . | . . . . Triggered . | . . . . Disarmed . | . . . . Reprogrammed . | . . . . Reused . | . . . . Traps Extracted . | . . . . Installed . | . . . . Triggered . | . . . . Machines | -11 -10 -9 -9 ---------- Run | Yrd Mat Mat Sto Machines Disabled 4 | . . . 4 Max in Single Turn 1 | . . . 1 Garrison Access 1 | . . . 1 Machines Repaired . | . . . . Machines Dismantled . | . . . . Machines Sabotaged . | . . . . Overloaded Fab Kills . | . . . . Hacking | -11 -10 -9 -9 --------- Run | Yrd Mat Mat Sto Machines Accessed 14 | . 2 2 10 Terminals 10 | . . 2 8 Fabricators . | . . . . Repair Stations . | . . . . Recycling Units 3 | . 2 . 1 Scanalyzers . | . . . . Garrison Access 1 | . . . 1 Total Hacks 28 | . 3 5 20 Successful 21 | . 3 4 14 Failed 7 | . . 1 6 Catastrophic . | . . . . Database Lockouts . | . . . . Manual 10 | . 2 1 7 Terminals 21 | . . 5 16 Fabricators . | . . . . Repair Stations . | . . . . Recycling Units 6 | . 3 . 3 Scanalyzers . | . . . . Garrison Access 1 | . . . 1 Terminal Hacks 9 | . . 3 6 Record 1 | . . . 1 Open Door 2 | . . . 2 Branch Access Points 2 | . . 1 1 Emergency Access Points 1 | . . 1 . Unreport Threat 1 | . . . 1 Locate Traps 1 | . . 1 . Transport Status 1 | . . . 1 Fabricator Hacks . | . . . . Repair Station Hacks . | . . . . Recycling Unit Hacks 3 | . 1 . 2 Report Inventory 2 | . 1 . 1 Retrieve Components 1 | . . . 1 Scanalyzer . | . . . . Garrison Access Hacks 1 | . . . 1 Seal Access 1 | . . . 1 Unauthorized Hacks 8 | . 2 1 5 Terminals 5 | . . 1 4 Botnet 5 | . . 1 4 Fabricators . | . . . . Repair Stations . | . . . . Recycling Units 3 | . 2 . 1 Tunnel 3 | . 2 . 1 Scanalyzers . | . . . . Garrison Access . | . . . . Data Cores Recovered . | . . . . Used . | . . . . Hacking Detections 5 | . . . 5 Full Trace Events . | . . . . Feedback Events . | . . . . Feedback Blocked . | . . . . Robot Schematics Acquired . | . . . . Robots Built . | . . . . Authchips . | . . . . Time . | . . . . Total Robot Build Rating . | . . . . Part Schematics Acquired . | . . . . Parts Built . | . . . . Authchips . | . . . . Time . | . . . . Total Part Build Rating . | . . . . Part Studies Acquired . | . . . . Parts Repaired . | . . . . Time . | . . . . Parts Recycled . | . . . . Recycled Matter . | . . . . Retrieved Matter . | . . . . Retrieved Components 7 | . . . 7 Parts Scanalyzed . | . . . . Part Schematics Acquired . | . . . . Parts Damaged . | . . . . Bothacking | -11 -10 -9 -9 ------------ Run | Yrd Mat Mat Sto Used RIF Installer . | . . . . Robots Hacked . | . . . . Non-combat . | . . . . Combat . | . . . . Robot Hacks Applied . | . . . . Relay Couplers Released . | . . . . Fabnet Peak Effective % . | . . . . Robots Rewired . | . . . . Allies Hacked . | . . . . Hacks Repelled . | . . . . Allies | -11 -10 -9 -9 -------- Run | Yrd Mat Mat Sto Total Allies . | . . . . Largest Group . | . . . . Highest-Rated Group . | . . . . Highest-Rated Ally . | . . . . Total Orders . | . . . . Ally Attacks . | . . . . Total Damage . | . . . . Kills . | . . . . Allies Corrupted . | . . . . Allies Melted . | . . . . Intel | -11 -10 -9 -9 ------- Run | Yrd Mat Mat Sto Active Infowar (turns) 1618 | 35 504 417 662 Seismic 1618 | 35 504 417 662 Robot Analysis Total . | . . . . Derelict Logs Recovered . | . . . . Drone Launches . | . . . . Drone Recoveries . | . . . . Exploration | -11 -10 -9 -9 ------------- Run | Yrd Mat Mat Sto Turns Passed 2686 | 162 504 417 1603 Spaces Moved 1239 | 94 281 167 697 Core 1 | 1 . . . Treads 1116 | . 252 167 697 Legs . | . . . . Wheels 122 | 93 29 . . Hover . | . . . . Flight . | . . . . Fastest Speed 50 | 50 90 160 160 Average Speed 156 | 90 152 187 160 Slowest Speed 240 | 100 160 240 240 Overloaded Moves . | . . . . Propulsion Burnouts . | . . . . Robots Hopped . | . . . . Potential Cave-ins 18 | . 3 5 10 Cave-ins Triggered 1 | . . . 1 Exploration Rate (%) 38 | 3 47 18 86 Regions Visited 3 Branch Regions 1 Pre-discovered Areas 3 | . 2 . 1 Known Exits Taken 1 | . . 1 . Unknown Exits Taken 2 | 1 1 . . Scrap Searched . | . . . . Spaces Dug 20 | . 6 14 . Terrain Destroyed 72 | . 6 14 52 Melee 14 | . . 14 . Projectile 7 | . 6 . 1 AOE 51 | . . . 51 Terrain Rammed . | . . . . Walls Destroyed . | . . . . Machines Disabled . | . . . . Actions | -11 -10 -9 -9 --------- Run | Yrd Mat Mat Sto Total 1612 | 132 313 212 955 Wait 28 | 2 2 . 24 Move 1236 | 93 280 166 697 Hop . | . . . . Pick Up 26 | 8 2 4 12 Fast Attach 25 | 7 . 4 14 Attach 1 | . . . 1 Detach . | . . . . Swap 28 | . 9 6 13 Drop 38 | . 1 2 35 Fire 202 | 22 17 12 151 Melee 27 | . 2 18 7 Ram . | . . . . Kick . | . . . . Crush 1 | . . . 1 Escape Stasis . | . . . . Rewire . | . . . . Trap . | . . . . Miscellaneous . | . . . . Route ------- -11/Scrapyard -10/Materials (discovered 2 exits: *Mat / [*Min]) -9/Materials (discovered 3 exits: Min x2 / *Sto) -9/Storage (discovered 2 exits: [*Mat] / Rec) History --------- Turn | Location | Event 18 | -11/Scrapyard | Discovered new exit (range 15) 163 | -11/Scrapyard | Entered Materials 337 | -10/Materials | Build established: Mutant 401 | -10/Materials | Discovered new exit (range 8) 614 | -10/Materials | Discovered new exit (range 12) 667 | -10/Materials | Entered another Materials area 667 | -9/Materials | Evolved 2 slots: Utility x2 1020 | -9/Materials | Discovered new exit (range 10) 1077 | -9/Materials | Identified exit to Mines 1077 | -9/Materials | Identified exit to Storage 1084 | -9/Materials | Entered Storage 1328 | -9/Storage | Build established: Scavenger-Mutant 1658 | -9/Storage | Core integrity fell below 50% 1759 | -9/Storage | Core integrity fell below 20% 2048 | -9/Storage | Discovered new exit (range 16) 2431 | -9/Storage | Crushed by falling debris 2573 | -9/Storage | Identified exit to Recycling 2687 | -9/Storage | Destroyed by S-10 Pest with Light Assault Rifle Last Messages --------------- 02557_ System corrupted: Matter fused (-10). 02568_ Connecting with Garrison Access... >>Seal Access door sealed. 02573_ Connecting with Terminal... >>Access(Branch) Found 1 branch access point: (10,64) Recycling Map updated. 02575_ System corrupted: Energy discharge (-56). 02577_ Sneak attack on A-02 Transporter. 02597_ System corrupted: Energy discharge (-67). 02623_ K-01 Serf cleans the Compression Vault. 02640_ Acquired 17 matter. 02647_ J|TPMXHISZ OBGNLJY6MS C>%QBW 02648_ Acquired 69 matter. 02652_ Acquired 11 matter. 02657_ Acquired 20 matter. 02672_ 8DJYBP:IL8W XGLV RL/9BPOOXIXIAB 02687_ System corrupted: IFF burst signal emitted. Map ----- +----------------------------------------------------+ | | | | | | | | | ?????????????????????????????????????????????????? | | ?????????????????????????????????????????????????? | | ????#######????????#######???????????????????????? | | ##### ########## #???????????????????????? | | [ #???????????????????????? | | %! #?????????#####?????????? | | #?????????#"""#?????????? | | ##### #####+#### [ #??????####"Y"###???????? | | ????## ##??? ??## ##??????# ==![ #???????? | | ?????# #???? ???#% #???????# *"""* #???????? | | ?????# #??? ??# #???????# """ #???????? | | ?????# #??? ??# #?????### """ #???????? | | ?????# #??# #?# #?????#"" #???????? | | ?????# #??# #?# #?????#"T """ #???????? | | ?????# #??# #?# #?????#"" """ #???????? | | ?????# #??# #?# #?????### """ #???????? | | ?????# #### #?# %#???????# #???????? | | ?????# + ### ##??????#####+####???????? | | ???####+##### ## ########## #????????? | | #??# # ## u #????????? | | #??# """"" ######## a % #????????? | | #### !!!" #??????# @s #????????? | | + """"" #??????# ########## #????????? | | #### """"" #??????###% ##????????#######????????? | | #??# "%[| #????????# #????????????????????????? | | #??# """"" #????????# #????###?????????????????? | | ???# #????????# #??? ?????????????????? | | ???# #????????# #??? ""?????????????????? | | ???##########????????# #?? ""?#???????????????? | | ?????????????????????# #? """#???????????????? | | ?????????????????????# %#? #???????????????? | | ?????????????????????# # """????????????????? | | ?????????????????????# # """#???????????????? | | ?????????????????????# + = """#?#####?????????? | | #######+##+###???????# # #?#"""#?????????? | | ######% #??#########"T"###???????? | | ######## #???????? | | + # ####????? | | +#####################% # # """ """ """#????? | | #????????????#% # # """ """ G"#????? | | """" #????????????# #? # """ """ """#????? | | "[["?????????????????# # # ####????? | | "[["""??###########??# #= # #???????? | | "["**"??# #??# + # #???????? | | " ["??# #??# # #####+#####??????## | | """" # ####% # #?# ########## | +----------------------------------------------------+ Best States ------------- Heat Dissipation 28 Energy Generation 14 Energy Capacity 280 Matter Stores 300 Matter Capacity 300 Sight Range 16 Terrain Scan Density 10 Armor Coverage 225 Utility Shielding 33 Evasion (%) 42 Recoil Reduction 2 Offensive Hacking 10 Item Schematics ----------------- None Robot Schematics ------------------ None Fabricated ------------ Nothing Repaired ---------- Nothing Studied --------- None Alien Tech Used ----------------- None Achievements -------------- None Challenges ------------ None Game ------ Seed JunkDoorDeck Manual? 0 Play Time 00:27:44 Cumulative 86.9 hours Start 2026.08.20 @ 12:06:36 End 2026.08.20 @ 12:38:38 Sessions 1 Manual Loads 0 Difficulty Rogue Special Mode None Game No. 80 Rogue 78 Adventurer 2 Explorer 0 Win Type - Total 0 Types 0/0/0/0/0/0/0/0/0/0 Lore% 43 Gallery% 37 Achievement% 29 Wizard Run 0 Options --------- Layout 0 ASCII 0 Keyboard 0 Movement Mouse Keybinds 0 Fullscreen 2 Font 24/Smallcaps Map View 76x50 Zoom Use 0% Tactical HUD 1 Map Filters NONE Filters NONE Steam 1 RUN: 0ce1f716-cd64-4772-bebf-2410ba22bb21